fUSD/lending_fUSD_20241114
["ID","MTS","AMOUNT","RATE_DAILY","PERIOD"]
[342182822,1731561031999,-252.7,9.045e-05,2]
[342182823,1731561032010,-252.7,9.047e-05,2]
[342182824,1731561032020,-252.7,9.049e-05,2]
[342182825,1731561032029,-252.7,9.052e-05,2]
[342182826,1731561032038,-252.7,9.054e-05,2]
[342182827,1731561032047,-2831.96,9.056e-05,2]
[342182828,1731561032056,-155.61248254,9.056e-05,2]
[342182829,1731561032065,-252.7,9.057e-05,2]
[342182830,1731561032074,-252.7,9.059e-05,2]
[342182831,1731561032083,-150.0,9.061e-05,2]
[342182832,1731561032094,-252.7,9.061e-05,2]
[342182833,1731561032104,-252.7,9.064e-05,2]
[342182834,1731561032113,-1000.0,9.065e-05,2]
[342182835,1731561032127,-252.7,9.066e-05,2]
[342182836,1731561032136,-252.7,9.069e-05,2]
[342182837,1731561032145,-252.7,9.071e-05,2]
[342182838,1731561032155,-252.7,9.073e-05,2]
[342182839,1731561032165,-252.7,9.076e-05,2]
[342182840,1731561032175,-1054.0,9.204e-05,2]
[342182841,1731561032184,-590.72,9.286e-05,2]
[342182842,1731561032193,-169.28,9.287e-05,2]
[342182843,1731561032203,-432.63,9.395e-05,2]
[342182844,1731561032214,-440.57,9.395e-05,2]
[342182845,1731561032223,-432.63,9.395e-05,2]
[342182846,1731561032232,-432.63,9.395e-05,2]
[342182847,1731561032241,-432.63,9.395e-05,2]
[342182849,1731561032251,-432.63,9.395e-05,2]
[342182851,1731561032260,-432.63,9.395e-05,2]
[342182853,1731561032269,-1526.3,9.395e-05,2]
[342182855,1731561032279,-432.63,9.395e-05,2]
[342182856,1731561032288,-1025.48,9.395e-05,2]
[342182857,1731561032297,-763.15,9.395e-05,2]
[342182858,1731561032306,-2020.2892,9.399e-05,2]
[342182859,1731561032315,-2500.0,9.399e-05,2]
[342182860,1731561032325,-1635.357,9.399e-05,2]
[342182861,1731561032334,-7342.8394,9.399e-05,2]
[342182862,1731561032345,-1000.0,9.399e-05,2]
[342182863,1731561032355,-7230.4196,9.4e-05,2]
[342182864,1731561032364,-2106.6446,9.4e-05,2]
[342182865,1731561032374,-8676.0,9.405e-05,2]
[342182866,1731561032383,-300.0,9.452e-05,2]
[342182867,1731561032392,-164.42,9.457e-05,2]
[342182868,1731561032402,-323.33690313,9.473e-05,2]
[342182869,1731561032416,-317.49947987,9.473e-05,2]
[342182870,1731561032425,-503.2939556,9.473e-05,2]
[342182871,1731561032435,-500.47591291,9.473e-05,2]
[342182872,1731561032444,-500.0,9.473e-05,2]
[342182873,1731561032453,-889.46442929,9.499e-05,2]
[342182874,1731561032463,-17770.6,9.499e-05,2]
[342182875,1731561032472,-17770.6,9.499e-05,2]
[342182876,1731561032482,-17770.6,9.499e-05,2]
[342182877,1731561032491,-17770.6,9.499e-05,2]
[342182878,1731561032500,-17770.6,9.499e-05,2]
[342182880,1731561032510,-14774.99086724,9.499e-05,2]
[342182882,1731561032522,-2995.60913276,9.499e-05,2]
[342182883,1731561032531,-17770.6,9.499e-05,2]
[342182884,1731561032541,-17770.6,9.499e-05,2]
[342182885,1731561032550,-17770.6,9.499e-05,2]
[342182886,1731561032560,-17770.6,9.499e-05,2]
[342182887,1731561032570,-17770.6,9.499e-05,2]
[342182888,1731561032579,-17770.6,9.499e-05,2]
[342182889,1731561032591,-17770.6,9.499e-05,2]
[342182890,1731561032600,-17770.6,9.499e-05,2]
[342182891,1731561032610,-17770.6,9.499e-05,2]
[342182892,1731561032619,-17770.6,9.499e-05,2]
[342182893,1731561032629,-17770.6,9.499e-05,2]
[342182894,1731561032639,-17770.6,9.499e-05,2]
[342182895,1731561032649,-17770.6,9.499e-05,2]
[342182896,1731561032658,-17770.6,9.499e-05,2]
[342182897,1731561032667,-17770.6,9.499e-05,2]
[342182898,1731561032677,-17770.6,9.499e-05,2]
[342182899,1731561032686,-17770.6,9.499e-05,2]
[342182900,1731561032696,-17770.75088483,9.499e-05,2]
[342182901,1731561032705,-189755.4399824,9.5e-05,2]
[342182902,1731561032716,-18302.47517209,9.5e-05,2]
[342182903,1731561032734,-5274.26386908,9.5e-05,2]
[342182904,1731561032749,-2320.96704111,9.5e-05,2]
[342182905,1731561032760,-13495.05892328,9.5e-05,2]
[342182906,1731561032785,-637.66026223,9.5e-05,2]
[342182909,1731561037818,-8531.83617196,9.5e-05,2]
[342182910,1731561037830,-1099.05000008,9.5e-05,2]
[342182911,1731561037845,-492.1710413,9.5e-05,2]
[342182912,1731561037856,-12764.60623787,9.5e-05,2]
[342182913,1731561037867,-4021.40146505,9.5e-05,2]
[342182914,1731561037879,-280.52516715,9.5e-05,2]
[342182915,1731561037890,-326087.0444664,9.5e-05,2]
[342182916,1731561037900,-939.0372,9.5e-05,2]
[342182917,1731561037909,-245000.0,9.5e-05,2]
[342182918,1731561037918,-100000.0,9.5e-05,2]
[342182919,1731561037927,-865.26,9.5e-05,2]
[342182920,1731561037937,-432.63,9.5e-05,2]
[342182921,1731561037946,-432.63,9.5e-05,2]
[342182922,1731561037955,-432.63,9.5e-05,2]
[342182923,1731561037964,-169.28,9.641e-05,2]
[342182924,1731561037974,-853.34,9.67e-05,2]
[342182925,1731561037983,-999.99,9.67e-05,2]
[342182926,1731561037992,-3823.55,9.67e-05,2]
[342182927,1731561038001,-1054.0,9.688e-05,2]
[342182928,1731561038011,-13639.0,9.7e-05,2]
[342182929,1731561038023,-5933.0,9.7e-05,2]
[342182930,1731561038032,-154.798,9.7e-05,2]
[342182931,1731561038041,-1160.0,9.7e-05,2]
[342182932,1731561038050,-200.0,9.9e-05,2]
[342182933,1731561038060,-524.0,9.9e-05,2]
[342182934,1731561038069,-255.0,9.968e-05,2]
[342182935,1731561038078,-432.63,9.98e-05,2]
[342182936,1731561038087,-1025.2886898,9.988e-05,2]
[342182937,1731561038099,-272.1135266,9.988e-05,2]
[342182938,1731561038108,-293.3937187,9.988e-05,2]
[342182939,1731561038118,-2739.6236209,9.988e-05,2]
[342182940,1731561038128,-1143.5657103,9.992e-05,2]
[342182941,1731561038139,-1305.939,9.993e-05,2]
[342182942,1731561038149,-180.9,9.993e-05,2]
[342182943,1731561038158,-169.28,9.995e-05,2]
[342182944,1731561038168,-1000.0,9.999e-05,2]
[342182945,1731561038178,-174.44216351,9.999e-05,2]
[342182946,1731561038188,-16546513.3354658,0.0001,2]
[342182947,1731561038197,-250.0,0.0001,2]
[342182948,1731561038206,-926.68086746,0.0001,2]
[342182949,1731561038218,-1462.61646628,0.0001,2]
[342182951,1731561038227,-15797.09445,0.0001,2]
[342182953,1731561038237,-2000.0,0.0001,2]
[342182955,1731561038247,-200.0,0.0001,2]
[342182957,1731561038256,-78629.0,0.0001,2]
[342182959,1731561038265,-432.63,0.0001,2]
[342182961,1731561038275,-2000.0,0.0001,2]
[342182962,1731561038284,-200.0,0.0001,2]
[342182963,1731561038293,-1260.251,0.0001,2]
[342182964,1731561038303,-455.204,0.0001,2]
[342182965,1731561038312,-566.027,0.0001,2]
[342182966,1731561038321,-1992.0,0.0001,2]
[342182967,1731561038330,-628.0,0.0001,2]
[342182969,1731561038340,-560.934,0.0001,2]
[342182970,1731561038349,-1932.123,0.0001,2]
[342182971,1731561038359,-816.0,0.0001,2]
[342182972,1731561038369,-1259.0,0.0001,2]
[342182973,1731561038378,-3489.0,0.0001,2]
[342182974,1731561038388,-3746.0,0.0001,2]
[342182975,1731561038397,-922.0,0.0001,2]
[342182976,1731561038407,-2000.0,0.0001,2]
[342182977,1731561038416,-200.0,0.0001,2]
[342182978,1731561038425,-1487.77,0.0001,2]
[342182979,1731561038434,-1139.19314678,0.0001,2]
[342182980,1731561038443,-3000.0,0.0001,2]
[342182981,1731561038452,-795.0,0.0001,2]
[342182983,1731561038462,-150.0,0.0001,2]
[342182985,1731561038471,-150.0,0.0001,2]
[342182987,1731561038481,-150.0,0.0001,2]
[342182989,1731561038489,-150.0,0.0001,2]
[342182991,1731561038498,-995.58241253,0.0001,2]
[342182993,1731561038507,-9155.52368608,0.0001,2]
[342182995,1731561038516,-26241.96854667,0.0001,2]
[342182996,1731561038525,-2828.78302291,0.0001,2]
[342182997,1731561038534,-176.99721658,0.0001,2]
[342182998,1731561038543,-1538.0,0.0001,2]
[342182999,1731561038552,-2000.0,0.0001,2]
[342183000,1731561038561,-200.0,0.0001,2]
[342183001,1731561038571,-59595.0,0.0001,2]
[342183002,1731561038581,-1471.0570895,0.0001,2]
[342183003,1731561038596,-1471.0570895,0.0001,2]
[342183004,1731561038605,-1471.0570895,0.0001,2]
[342183005,1731561038615,-376.07056311,0.0001,2]
[342183006,1731561038624,-31546.0,0.00010008,2]
[342183007,1731561038634,-1000.0,0.00010021,2]
[342183008,1731561038644,-1034.95,0.00010057,2]
[342183009,1731561038654,-1034.95,0.0001006,2]
[342183010,1731561038664,-1034.95,0.00010062,2]
[342183011,1731561038674,-1034.95,0.00010065,2]
[342183012,1731561038683,-1034.95,0.00010068,2]
[342183013,1731561038692,-1034.95,0.0001007,2]
[342183014,1731561038702,-261.6,0.00010071,2]
[342183015,1731561038711,-1034.95,0.00010073,2]
[342183016,1731561038721,-1034.95,0.00010075,2]
[342183017,1731561038730,-1034.95,0.00010078,2]
[342183018,1731561038740,-1034.95,0.00010081,2]
[342183019,1731561038749,-1034.95,0.00010083,2]
[342183020,1731561038759,-1034.95,0.00010086,2]
[342183021,1731561038769,-1034.95,0.00010089,2]
[342183022,1731561038778,-1034.95,0.00010091,2]
[342183023,1731561038788,-1034.95,0.00010094,2]
[342183024,1731561038797,-1034.95,0.00010097,2]
[342183025,1731561038807,-1034.95,0.00010099,2]
[342183026,1731561038816,-247.2335333,0.000101,2]
[342183027,1731561038825,-2000.0,0.000101,2]
[342183028,1731561038835,-200.0,0.000101,2]
[342183029,1731561038845,-2000.0,0.000101,2]
[342183030,1731561038855,-200.0,0.000101,2]
[342183031,1731561038865,-2000.0,0.000101,2]
[342183032,1731561038875,-200.0,0.000101,2]
[342183033,1731561038884,-2000.0,0.000101,2]
[342183034,1731561038894,-200.0,0.000101,2]
[342183035,1731561038903,-1034.95,0.00010102,2]
[342183036,1731561038913,-1034.95,0.00010105,2]
[342183037,1731561038922,-1034.95,0.00010107,2]
[342183038,1731561038932,-1000.0,0.00010198,2]
[342183039,1731561038943,-1054.0,0.00010198,2]
[342183040,1731561038955,-865.06,0.000102,2]
[342183041,1731561038973,-432.63,0.000102,2]
[342183042,1731561038993,-1000.0,0.000102,2]
[342183043,1731561039012,-2000.0,0.00010201,2]
[342183044,1731561039029,-200.0,0.00010201,2]
[342183045,1731561039040,-2000.0,0.00010201,2]
[342183046,1731561039050,-200.0,0.00010201,2]
[342183047,1731561039060,-2000.0,0.00010201,2]
[342183048,1731561039071,-200.0,0.00010201,2]
[342183049,1731561039081,-2000.0,0.00010201,2]
[342183050,1731561039092,-200.0,0.00010201,2]
[342183051,1731561039102,-164.42,0.00010245,2]
[342183052,1731561039112,-1487.77,0.00010273,2]
[342183053,1731561039122,-2000.0,0.00010303,2]
[342183054,1731561039134,-200.0,0.00010303,2]
[342183055,1731561039144,-2000.0,0.00010303,2]
[342183056,1731561039154,-200.0,0.00010303,2]
[342183057,1731561039163,-2000.0,0.00010303,2]
[342183058,1731561039173,-200.0,0.00010303,2]
[342183059,1731561039182,-2000.0,0.00010303,2]
[342183060,1731561039192,-200.0,0.00010303,2]
[342183061,1731561039203,-763.15,0.00010354,2]
[342183062,1731561039214,-432.63,0.00010354,2]
[342183063,1731561039223,-940.52,0.00010354,2]
[342183064,1731561039233,-763.15,0.00010354,2]
[342183065,1731561039243,-763.15,0.00010354,2]
[342183066,1731561039253,-763.15,0.00010354,2]
[342183067,1731561039263,-763.15,0.00010354,2]
[342183068,1731561039273,-763.15,0.00010354,2]
[342183069,1731561039282,-763.15,0.00010354,2]
[342183070,1731561039292,-763.15,0.00010354,2]
[342183071,1731561039301,-763.15,0.00010354,2]
[342183072,1731561039311,-763.15,0.00010354,2]
[342183073,1731561039321,-763.15,0.00010354,2]
[342183074,1731561039330,-763.15,0.00010354,2]
[342183075,1731561039342,-763.15,0.00010354,2]
[342183076,1731561039352,-763.15,0.00010354,2]
[342183077,1731561039362,-763.15,0.00010354,2]
[342183078,1731561039372,-763.15,0.00010354,2]
[342183079,1731561039381,-1107.67,0.00010354,2]
[342183080,1731561039391,-776.87,0.00010354,2]
[342183081,1731561039400,-763.15,0.00010354,2]
[342183082,1731561039409,-763.3,0.00010354,2]
[342183083,1731561039419,-412.50048212,0.00010365,2]
[342183084,1731561039428,-1785.89,0.00010382,2]
[342183085,1731561039438,-763.15,0.000104,2]
[342183086,1731561039447,-2000.0,0.00010406,2]
[342183087,1731561039457,-200.0,0.00010406,2]
[342183088,1731561039466,-2000.0,0.00010406,2]
[342183089,1731561039476,-200.0,0.00010406,2]
[342183090,1731561039485,-2000.0,0.00010406,2]
[342183091,1731561039494,-200.0,0.00010406,2]
[342183092,1731561039504,-2000.0,0.00010406,2]
[342183093,1731561039513,-200.0,0.00010406,2]
[342183094,1731561039522,-412.50048212,0.00010436,2]
[342183095,1731561039532,-590.72,0.00010447,2]
[342183096,1731561039542,-432.72,0.000105,2]
[342183097,1731561039552,-11557.0,0.000105,3]
[342183098,1731561039563,-1487.77,0.00010547,2]
[342183099,1731561039572,-1054.0,0.00010735,2]
[342183100,1731561039582,-412.50048212,0.00010799,2]
[342183101,1731561039593,-1487.77,0.00010821,2]
[342183102,1731561039603,-20841.37970066,0.00010899,2]
[342183103,1731561039612,-20841.37970063,0.00010899,2]
[342183104,1731561039622,-20841.37970063,0.00010899,2]
[342183105,1731561039631,-20841.37970063,0.00010899,2]
[342183107,1731561039641,-20841.37970063,0.00010899,2]
[342183108,1731561039650,-20841.37970063,0.00010899,2]
[342183109,1731561039660,-20841.37970063,0.00010899,2]
[342183110,1731561039669,-20841.37970063,0.00010899,2]
[342183111,1731561039679,-20841.37970063,0.00010899,2]
[342183112,1731561039688,-20841.37970063,0.00010899,2]
[342183113,1731561039697,-511.85559871,0.000109,2]
[342183114,1731561039707,-511.85559866,0.000109,2]
[342183115,1731561039716,-511.85559866,0.000109,2]
[342183116,1731561039726,-511.85559866,0.000109,2]
[342183117,1731561039735,-511.85559866,0.000109,2]
[342183118,1731561039744,-511.85559866,0.000109,2]
[342183119,1731561039754,-511.85559866,0.000109,2]
[342183120,1731561039763,-511.85559866,0.000109,2]
[342183121,1731561039773,-8076.05579089,0.000109,2]
[342183122,1731561039782,-11557.0,0.000109,5]
[342183123,1731561039791,-500.0,0.00010958,2]
[342183124,1731561039800,-500.0,0.00010958,2]
[342183125,1731561039810,-500.0,0.00010958,2]
[342183126,1731561039819,-500.0,0.00010958,2]
[342183127,1731561039828,-500.0,0.00010958,2]
[342183128,1731561039838,-500.0,0.00010958,2]
[342183129,1731561039849,-500.0,0.00010958,2]
[342183130,1731561039858,-500.0,0.00010958,2]
[342183131,1731561039868,-500.0,0.00010958,2]
[342183132,1731561039878,-500.0,0.00010958,2]
[342183133,1731561039888,-500.0,0.00010958,2]
[342183134,1731561039897,-500.0,0.00010958,2]
[342183135,1731561039906,-500.0,0.00010958,2]
[342183136,1731561039916,-500.0,0.00010958,2]
[342183137,1731561039926,-500.0,0.00010958,2]
[342183138,1731561039935,-500.0,0.00010958,2]
[342183139,1731561039945,-500.0,0.00010958,2]
[342183140,1731561039954,-500.0,0.00010958,2]
[342183141,1731561039963,-500.0,0.00010958,2]
[342183142,1731561039973,-500.0,0.00010958,2]
[342183143,1731561039982,-500.0,0.00010958,2]
[342183144,1731561039993,-500.0,0.00010958,2]
[342183145,1731561040002,-500.0,0.00010958,2]
[342183146,1731561040011,-500.0,0.00010958,2]
[342183147,1731561040021,-500.0,0.00010958,2]
[342183148,1731561040031,-500.0,0.00010958,2]
[342183149,1731561040040,-413.34475008,0.00010958,2]
[342183150,1731561040050,-500.0,0.00010958,2]
[342183151,1731561040060,-500.0,0.00010958,2]
[342183152,1731561040070,-500.0,0.00010958,2]
[342183154,1731561040080,-322.93800533,0.00010958,2]
[342183155,1731561040089,-500.0,0.00010958,2]
[342183156,1731561040101,-500.0,0.00010958,2]
[342183157,1731561040110,-350.0,0.00010958,2]
[342183158,1731561040119,-500.0,0.00010958,2]
[342183159,1731561040129,-571.20886755,0.00010958,2]
[342183160,1731561040141,-338.95650643,0.00010958,2]
[342183161,1731561040150,-500.0,0.00010958,2]
[342183162,1731561040160,-500.0,0.00010958,2]
[342183163,1731561040500,-500.0,0.00010958,2]
[342183164,1731561040510,-320.14880527,0.00010958,2]
[342183165,1731561040520,-500.0,0.00010958,2]
[342183166,1731561040529,-500.0,0.00010958,2]
[342183167,1731561040539,-500.0,0.00010958,2]
[342183168,1731561040548,-396.55762416,0.00010958,2]
[342183169,1731561040558,-500.0,0.00010958,2]
[342183170,1731561040568,-500.0,0.00010958,2]
[342183171,1731561040578,-500.0,0.00010958,2]
[342183172,1731561040588,-500.0,0.00010958,2]
[342183173,1731561040599,-500.0,0.00010958,2]
[342183174,1731561040609,-500.0,0.00010958,2]
[342183175,1731561040618,-500.0,0.00010958,2]
[342183176,1731561040628,-500.0,0.00010958,2]
[342183177,1731561040637,-500.0,0.00010958,2]
[342183178,1731561040647,-162.17816939,0.00010958,2]
[342183179,1731561040657,-379.66344723,0.00010958,2]
[342183180,1731561040666,-500.0,0.00010958,2]
[342183181,1731561040676,-500.0,0.00010958,2]
[342183182,1731561040685,-500.0,0.00010958,2]
[342183183,1731561040694,-500.0,0.00010958,2]
[342183184,1731561040703,-500.0,0.00010958,2]
[342183185,1731561040713,-500.0,0.00010958,2]
[342183186,1731561040723,-372.44026017,0.00010958,2]
[342183187,1731561040732,-500.0,0.00010958,2]
[342183188,1731561040742,-500.0,0.00010958,2]
[342183189,1731561040751,-500.0,0.00010958,2]
[342183190,1731561040761,-500.0,0.00010958,2]
[342183191,1731561040771,-500.0,0.00010958,2]
[342183192,1731561040780,-500.0,0.00010958,2]
[342183193,1731561040789,-535.48325865,0.00010958,2]
[342183194,1731561040799,-500.0,0.00010958,2]
[342183195,1731561040808,-500.0,0.00010958,2]
[342183196,1731561040818,-500.0,0.00010958,2]
[342183197,1731561040828,-500.0,0.00010958,2]
[342183198,1731561040842,-500.0,0.00010958,2]
[342183199,1731561040856,-1500.0,0.00010958,2]
[342183200,1731561040870,-250.0,0.00010959,2]
[342183201,1731561040880,-21654.83,0.00010959,2]
[342183202,1731561040890,-150.0,0.00010959,2]
[342183203,1731561040899,-21182.41,0.00010959,2]
[342183204,1731561040908,-484.08,0.00010959,2]
[342183205,1731561040917,-1034.34,0.00010959,2]
[342183206,1731561040926,-861.95,0.00010959,2]
[342183207,1731561040935,-718.29,0.00010959,2]
[342183208,1731561040944,-598.58,0.00010959,2]
[342183209,1731561040954,-302.0,0.00010964,2]
[342183210,1731561040963,-164.42,0.00011033,2]
[342183211,1731561040971,-1487.77,0.00011095,2]
[342183212,1731561040981,-412.50048212,0.00011173,2]
[342183213,1731561040990,-261.6,0.0001119,2]
[342183214,1731561040999,-412.50048212,0.00011251,2]
[342183215,1731561041009,-1054.0,0.000113,2]
[342183216,1731561041018,-1000.0,0.00011331,2]
[342183217,1731561041027,-1487.77,0.00011369,2]
[342183218,1731561041038,-382.03,0.00011507,2]
[342183219,1731561041048,-590.72,0.00011608,2]
[342183220,1731561041057,-1487.77,0.00011643,2]
[342183221,1731561041067,-10658.31188406,0.000117,2]
[342183222,1731561041078,-151.0,0.00011719,2]
[342183223,1731561041088,-1000.0,0.000118,2]
[342183224,1731561041102,-388.81277673,0.000118,2]
[342183225,1731561041112,-164.42,0.00011822,2]
[342183226,1731561041128,-1054.0,0.00011894,2]
[342183227,1731561041140,-156.36315653,0.000119,2]
[342183228,1731561041150,-1487.77,0.00011917,2]
[342183229,1731561041159,-1537.0067702,0.00011992,2]
[342183230,1731561041169,-1378.0368224,0.00011992,2]
[342183231,1731561041181,-1730.7849549,0.00011992,2]
[342183232,1731561041191,-371.8641502,0.00011992,2]
[342183233,1731561041200,-471.6147738,0.00011992,2]
[342183234,1731561041210,-408.2433691,0.00011992,2]
[342183235,1731561041220,-3812.0556295,0.00011992,2]
[342183236,1731561041231,-15281576.95512046,0.00012,2]
[342183237,1731561042927,-279.36,0.00012,2]
[342183238,1731561042939,-353.54,0.00012,2]
[342183239,1731561042954,-419.16373027,0.00012,2]
[342183240,1731561042966,-61662.72291911,0.00012,2]
[342183241,1731561042976,-25972.30428063,0.00012,2]
[342183242,1731561043118,-4764.71190785,0.00012,2]
[342183243,1731561043133,-1129.28277203,0.00012,2]
[342183245,1731561043143,-4503.5,0.00012,2]
[342183247,1731561043270,-2264.0723553,9.988e-05,2]
[342183248,1731561043279,-498.81,0.00010959,2]
[342183249,1731561043288,-424.23150378,0.00011992,2]
[342183251,1731561043300,-559.38,0.00011992,2]
[342183253,1731561043311,-2166.73721642,0.00011992,2]
[342183255,1731561043320,-67078.41910218,0.00012,2]
[342183257,1731561043335,-324.48656896,0.00012,2]
[342183259,1731561043350,-661.61830198,0.00012,2]
[342183261,1731561043369,-416.51420964,0.00012,2]
[342183262,1731561043381,-1000.0,0.00012,2]
[342183263,1731561043394,-3886.615,0.00012,2]
[342183264,1731561043408,-1405.28875568,0.00012,2]
[342183265,1731561043422,-470436.35687678,0.00012,2]
[342183266,1731561043435,-518798.24747045,0.00012,2]
[342183267,1731561043693,-150.01,9.999e-05,2]
[342183268,1731561043703,-4529.80161912,0.00012,2]
[342183269,1731561043715,-2991.19103618,0.00012,2]
[342183270,1731561043733,-18084.98205089,0.00012,2]
[342183271,1731561043749,-1391.08407539,0.00012,2]
[342183272,1731561043766,-566051.42927188,0.00012,2]
[342183273,1731561043777,-2700.93,0.00012,2]
[342183278,1731561045691,-1096.411,0.00010035,2]
[342183279,1731561045701,-7906.689,0.00012,2]
[342183280,1731561045753,-8155376.30593052,0.00012,2]
[342183281,1731561045763,-1005.0,0.00012,2]
[342183282,1731561045772,-1000.0,0.00012,2]
[342183283,1731561045781,-1450.0,0.00012,2]
[342183284,1731561045791,-168.27,0.00012033,2]
[342183285,1731561045799,-3408.58,0.00012055,2]
[342183286,1731561045808,-1930.44783,0.00012092,2]
[342183287,1731561045818,-523.0930195,0.00012092,2]
[342183288,1731561045827,-4884.4876382,0.00012092,2]
[342183289,1731561045836,-4036.625085,0.00012092,2]
[342183290,1731561045850,-16054525.34845344,0.000121,5]
[342183291,1731561045859,-175.026146,0.00012108,2]
[342183292,1731561045869,-159.73,0.0001211,2]
[342183293,1731561045879,-150.0,0.0001211,2]
[342183294,1731561045888,-1526.3,0.0001211,2]
[342183295,1731561045899,-150.0,0.0001211,2]
[342183296,1731561045908,-150.0,0.0001211,2]
[342183297,1731561045918,-967.89,0.0001211,2]
[342183298,1731561045928,-150.0,0.0001211,2]
[342183299,1731561045938,-150.0,0.0001211,2]
[342183300,1731561045947,-967.89,0.0001211,2]
[342183301,1731561045957,-150.0,0.0001211,2]
[342183302,1731561045966,-150.0,0.0001211,2]
[342183303,1731561045976,-150.0,0.0001211,2]
[342183304,1731561045986,-150.0,0.0001211,2]
[342183305,1731561045995,-967.89,0.0001211,2]
[342183306,1731561046005,-150.0,0.0001211,2]
[342183307,1731561046014,-967.89,0.0001211,2]
[342183308,1731561046024,-150.0,0.0001211,2]
[342183309,1731561046033,-967.89,0.0001211,2]
[342183310,1731561046041,-966.09,0.0001211,2]
[342183311,1731561046050,-150.0,0.0001211,2]
[342183312,1731561046059,-150.0,0.0001211,2]
[342183313,1731561046068,-150.0,0.0001211,2]
[342183314,1731561046079,-362.36,0.0001211,2]
[342183315,1731561046088,-362.36,0.0001211,2]
[342183316,1731561046100,-432.72,0.0001211,2]
[342183317,1731561046110,-362.36,0.0001211,2]
[342183318,1731561046120,-432.72,0.0001211,2]
[342183319,1731561046130,-432.72,0.0001211,2]
[342183320,1731561046142,-432.72,0.0001211,2]
[342183321,1731561046151,-432.72,0.0001211,2]
[342183322,1731561046160,-408.73,0.0001211,2]
[342183323,1731561046171,-1487.77,0.00012191,2]
[342183324,1731561046180,-175.026146,0.00012259,2]
[342183325,1731561046189,-167593.27664514,0.0001228,2]
[342183326,1731561046199,-60766.05,0.000123,2]
[342183328,1731561046209,-261.6,0.00012309,2]
[342183329,1731561046220,-151.0,0.00012329,2]
[342183330,1731561046229,-168.058195,0.00012329,2]
[342183331,1731561046238,-163.448231,0.00012329,2]
[342183332,1731561046247,-151.0,0.00012329,2]
[342183333,1731561046256,-151.0,0.00012329,2]
[342183334,1731561046265,-278.708921,0.00012329,2]
[342183335,1731561046274,-278.708921,0.00012329,2]
[342183336,1731561046283,-151.0,0.00012329,2]
[342183337,1731561046291,-151.0,0.00012329,2]
[342183338,1731561046300,-151.0,0.00012329,2]
[342183339,1731561046309,-151.0,0.00012329,2]
[342183340,1731561046318,-151.0,0.00012329,2]
[342183341,1731561046326,-151.0,0.00012329,2]
[342183342,1731561046335,-151.0,0.00012329,2]
[342183343,1731561046344,-151.0,0.00012329,2]
[342183344,1731561046355,-454.725501,0.00012329,2]
[342183345,1731561046364,-454.725501,0.00012329,2]
[342183346,1731561046374,-151.0,0.00012329,2]
[342183347,1731561046382,-151.0,0.00012329,2]
[342183348,1731561046391,-251.723012,0.00012329,2]
[342183349,1731561046400,-251.723012,0.00012329,2]
[342183350,1731561046409,-483.281949,0.00012329,2]
[342183351,1731561046418,-483.281949,0.00012329,2]
[342183352,1731561046427,-312.265955,0.00012329,2]
[342183353,1731561046436,-312.265955,0.00012329,2]
[342183354,1731561046445,-162.672534,0.00012329,2]
[342183355,1731561046454,-309.895056,0.00012329,2]
[342183356,1731561046464,-309.895056,0.00012329,2]
[342183357,1731561046474,-162.672534,0.00012329,2]
[342183358,1731561046484,-151.0,0.00012329,2]